Cogmind - Beta 12 @@@ ROGUE MODE // 2023.05.03 @ 20:35:29 Player: Exp. Geonium Core Result: Destroyed by EX-DEC with AWS/EX-DEC Performance ------------- Evolutions (1) 500 Regions Visited (5) 1000 Robots Destroyed (36) 180 Value Destroyed (877) 877 Prototype IDs (27) 540 Alien Tech Used (0) 0 Bonus (300) 300 TOTAL SCORE: 3397 Bonus ------- Aligned with FarCom 300 Cogmind --------- Core Integrity 0/400 Matter 280/300 Energy 170/170 System Corruption 4% Temperature Cool (0) Movement Walking (133) Location -9/Exiles Parts ------- > --- POWER (1) -------- Makeshift Power Source > --- PROPULSION (3) --- Makeshift Leg Makeshift Leg Advanced Myomer Leg > --- UTILITY (3) ------ Large Storage Unit > --- WEAPON (2) ------- Light Assault Rifle > --- INVENTORY (15) --- Improved Ion Engine Grenade Launcher Peak State ------------ > --- POWER ------------ Makeshift Power Source > --- PROPULSION ------- Makeshift Leg Makeshift Leg Advanced Myomer Leg > --- UTILITY ---------- Heat Sink Experimental Heat Sink Large Storage Unit > --- WEAPON ----------- Light Assault Rifle Light Assault Rifle > --- INVENTORY -------- Improved Ion Engine Grenade Launcher [Rating: 31] Favorites ----------- Power Improved Ion Engine Engine Improved Ion Engine Propulsion Light Treads Treads Light Treads Leg Advanced Myomer Leg Wheel Compact Wheel Utility Heat Sink Device Heat Sink Storage Large Storage Unit Processor Targeting Computer Weapon Light Assault Rifle Ballistic Gun Light Assault Rifle Launcher Grenade Launcher Build | -11 -10 -10 -9 -9 -9 ------- Run | Jun Mat Min Mat Min Exi Slots Evolved 2 | . . . 2 . . Power . | . . . . . . Propulsion 1 | . . . 1 . . Utility 1 | . . . 1 . . Weapon . | . . . . . . Parts Attached 52 | . 5 7 16 2 22 Power 4 | . . 1 2 . 1 Engine 4 | . . 1 2 . 1 Core . | . . . . . . Reactor . | . . . . . . Propulsion 20 | . 5 3 5 . 7 Treads 14 | . 2 3 5 . 4 Leg 3 | . . . . . 3 Wheel 3 | . 3 . . . . Hover . | . . . . . . Flight . | . . . . . . Utility 7 | . . 1 3 . 3 Device 5 | . . . 2 . 3 Storage 1 | . . . 1 . . Processor 1 | . . 1 . . . Hackware . | . . . . . . Protection . | . . . . . . Artifact . | . . . . . . Weapon 21 | . . 2 6 2 11 Energy Gun . | . . . . . . Energy Cannon . | . . . . . . Ballistic Gun 17 | . . 2 5 1 9 Ballistic Cannon . | . . . . . . Launcher 4 | . . . 1 1 2 Special Weapon . | . . . . . . Impact Weapon . | . . . . . . Slashing Weapon . | . . . . . . Piercing Weapon . | . . . . . . Special Melee Weapon . | . . . . . . Unidentified Prototypes 2 | . . . . . 2 Parts Lost 28 | . 2 6 3 . 17 Power 3 | . . 2 . . 1 Propulsion 12 | . 2 2 1 . 7 Utility 4 | . . . 1 . 3 Weapon 9 | . . 2 1 . 6 Highest Loss Streak 7 | . 2 4 2 . 7 To Critical Strikes 7 | . . . . . 7 Average Slot Usage (%) 86 | . 81 85 90 100 84 Engine 8 | . 14 8 6 11 8 Treads 24 | . 20 19 31 33 23 Leg 2 | . 1 . . . 5 Wheel 1 | . 3 5 . . . Device 11 | . . . 14 22 14 Storage 11 | . 14 14 11 11 11 Processor 2 | . . 9 5 . . Ballistic Gun 22 | . 28 27 19 22 20 Naked Turns . | . . . . . . Heaviest Build 35 | 13 13 14 35 35 35 Greatest Support 70 | 20 40 40 60 60 70 Greatest Overweight (x) 4 | . 4 . . . 1 Average Overweight (x) . | . . . . . . Largest Inventory Capacity 15 | 8 8 8 15 15 15 Average Capacity 12 | 8 8 8 9 15 15 Most Carried 15 | 6 8 8 11 11 15 Average Carried 8 | 6 7 7 8 11 9 Final Capacity 15 | 8 8 8 15 15 15 Final Carried 11 | 6 8 7 11 11 2 Class Distribution -------------------- 65% | Mutant 34% | Scavenger-Mutant Dominant Class ---------------- Mutant | -10/Materials Mutant | -10/Mines Mutant | -9/Materials Scavenger-Mutant | -9/Mines Mutant | -9/Exiles Resources | -11 -10 -10 -9 -9 -9 ----------- Run | Jun Mat Min Mat Min Exi Matter Collected 1361 | 170 166 147 303 16 559 Remotely . | . . . . . . Salvage Created 1442 | . 337 254 597 16 238 Parts 82 | . 18 12 35 4 13 Haulers Intercepted . | . . . . . . Recyclers Shooed 1 | . 1 . . . . Parts Field Recycled . | . . . . . . Retrieved Matter . | . . . . . . Parts Self-Destructed . | . . . . . . Prevented . | . . . . . . Kills | -11 -10 -10 -9 -9 -9 ------- Run | Jun Mat Min Mat Min Exi Combat Hostiles Destroyed 27 | . 6 6 9 3 3 Guns 22 | . 6 6 9 . 1 AOE 5 | . . . . 3 2 Classes Destroyed 9 | . 3 . 3 . 3 Worker 1 | . 1 . . . . Recycler 4 | . 1 . 3 . . Turret 1 | . . . . . 1 Swarmer 6 | . . . 3 3 . Grunt 13 | . 6 6 1 . . Duelist 1 | . . . 1 . . Sentry 4 | . . . 4 . . Zionite 6 | . . . . . 6 Assembled 2 | . . . . . 2 Best Kill Streak 5 | . 5 2 4 3 4 Combat Bots Only 3 | . 3 2 3 3 2 Max Kills in Single Turn 3 | . 1 1 1 3 2 Gunslinging . | . . . . . . Exploded 3 | . . . . 3 2 Melee . | . . . . . . Uniques/NPCs Destroyed 1 | . . . . . 1 8R-AWN (-9/Exiles) Combat | -11 -10 -10 -9 -9 -9 -------- Run | Jun Mat Min Mat Min Exi Damage Taken 3761 | . 536 738 561 44 1882 Core 588 | . 56 124 75 . 333 Absorbed by Shields . | . . . . . . Core Remaining (%) 64 | 100 . 28 . . . Volleys Fired 263 | . 24 54 48 1 136 Largest 2 | . 2 2 2 1 2 Hottest 46 | . 40 40 46 30 46 Shots Fired 490 | . 48 91 94 1 256 Gun 480 | . 48 91 93 . 248 Cannon . | . . . . . . Launcher 10 | . . . 1 1 8 Special . | . . . . . . Kinetic 480 | . 48 91 93 . 248 Thermal . | . . . . . . Explosive 10 | . . . 1 1 8 Electromagnetic . | . . . . . . Robot Hit Streak 23 | . 6 10 16 6 23 Robot Miss Streak 5 | . 3 3 5 . 5 Penetration Max . | . . . . . . Secondary Targets 4 | . 1 1 2 . . Max Gunslinging Chain 1 | . 1 1 1 . . Shots Hit Robots 321 | . 24 59 62 1 175 Core Hits 110 | . 16 19 24 3 48 Critical Kills . | . . . . . . Critical Parts Destroyed 3 | . 2 . . . 1 Critical Strikes 3 | . 2 . . . 1 Destroy 3 | . 2 . . . 1 Melee Attacks . | . . . . . . Impact . | . . . . . . Slashing . | . . . . . . Piercing . | . . . . . . Sneak Attacks . | . . . . . . Combat Hostiles . | . . . . . . Follow-up Attacks . | . . . . . . Damage Inflicted 3470 | . 283 497 629 140 1921 Guns 3068 | . 283 497 622 . 1666 Cannons . | . . . . . . Explosions 395 | . . . . 140 255 Melee . | . . . . . . Ramming 7 | . . . 7 . . Kinetic 3068 | . 283 497 622 . 1666 Thermal . | . . . . . . Explosive 395 | . . . . 140 255 Electromagnetic . | . . . . . . Impact . | . . . . . . Slashing . | . . . . . . Piercing . | . . . . . . Highest Corruption 4 | . . . . . 4 Average Corruption 2 | . . . . . 2 Corruption Purged . | . . . . . . Corruption Blocked . | . . . . . . Effects 1 | . . . . . 1 Misfires 1 | . . . . . 1 Overload Shots . | . . . . . . Overflow Damage . | . . . . . . Projectiles . | . . . . . . Explosions . | . . . . . . Melee . | . . . . . . Knockbacks . | . . . . . . Impact . | . . . . . . Kinetic . | . . . . . . Secondary . | . . . . . . Self-Inflicted Damage 60 | . . . . 29 31 Shots 2 | . . . . 1 1 Rammed 4 | . . . 4 . . Targets Rammed 4 | . . . 4 . . Kicked . | . . . . . . Crushed . | . . . . . . Highest Temperature 41 | . 30 41 . . 2 Average Temperature 9 | . 11 9 . . 2 Received Heat Transfer 936 | . 291 429 216 . . Siege Activations . | . . . . . . Robots Corrupted . | . . . . . . Combat Hostiles . | . . . . . . Parts Fried . | . . . . . . Impact Corruptions . | . . . . . . Robots Melted . | . . . . . . Combat Hostiles . | . . . . . . Parts Melted . | . . . . . . Heat Transferred . | . . . . . . Parts Sabotaged . | . . . . . . Parts Stolen . | . . . . . . Parts Stripped . | . . . . . . Power Chain Reactions . | . . . . . . Missiles Intercepted . | . . . . . . Alert | -11 -10 -10 -9 -9 -9 ------- Run | Jun Mat Min Mat Min Exi Peak Influence 209 | . 155 135 209 151 . Initial 71 | . . 60 19 71 . Average 88 | . 59 70 99 150 . Maximum Alert Level 1 | . . . 1 . . Low Security (%) 99 | 100 100 100 99 100 . Level 1 . | . . . . . . Level 2 . | . . . . . . Level 3 . | . . . . . . Level 4 . | . . . . . . Level 5 . | . . . . . . High Security . | . . . . . . Max Security . | . . . . . . Squads Dispatched 2 | . 2 . . . . Investigation 1 | . 1 . . . . Extermination . | . . . . . . Reinforcement 1 | . 1 . . . . Assault . | . . . . . . Garrison . | . . . . . . Intercept . | . . . . . . Searches Triggered . | . . . . . . Construction Impeded . | . . . . . . Haulers Reinforced . | . . . . . . Active Scanning Responses . | . . . . . . Cargo Convoy Interrupts . | . . . . . . Stealth | -11 -10 -10 -9 -9 -9 --------- Run | Jun Mat Min Mat Min Exi Distress Signals . | . . . . . . Communications Jammed . | . . . . . . Distress Signals . | . . . . . . Times Spotted 76 | . 8 7 14 3 44 Peak Tracking Total 10 | . 4 2 5 3 10 Tactical Retreats 15 | . . . 2 . 13 Traps | -11 -10 -10 -9 -9 -9 ------- Run | Jun Mat Min Mat Min Exi Traps Triggered 1 | . 1 . . . . Indirectly . | . . . . . . Trap Hack Attempts . | . . . . . . Triggered . | . . . . . . Disarmed . | . . . . . . Reprogrammed . | . . . . . . Reused . | . . . . . . Traps Extracted . | . . . . . . Installed . | . . . . . . Triggered . | . . . . . . Exploded 3 | . . . . . 3 Machines | -11 -10 -10 -9 -9 -9 ---------- Run | Jun Mat Min Mat Min Exi Machines Disabled 5 | . . 1 . . 4 Max in Single Turn 1 | . . 1 . . 1 Machines Repaired . | . . . . . . Machines Sabotaged . | . . . . . . Overloaded Fab Kills . | . . . . . . Hacking | -11 -10 -10 -9 -9 -9 --------- Run | Jun Mat Min Mat Min Exi Machines Accessed 4 | . . . 2 . 2 Terminals 2 | . . . 2 . . Fabricators . | . . . . . . Repair Stations . | . . . . . . Recycling Units . | . . . . . . Scanalyzers . | . . . . . . Garrison Access . | . . . . . . Total Hacks 8 | . . . 6 . 2 Successful 6 | . . . 4 . 2 Failed 1 | . . . 1 . . Catastrophic . | . . . . . . Database Lockouts 1 | . . . 1 . . Manual 6 | . . . 5 . 1 Terminals 6 | . . . 6 . . Fabricators . | . . . . . . Repair Stations . | . . . . . . Recycling Units . | . . . . . . Scanalyzers . | . . . . . . Garrison Access . | . . . . . . Terminal Hacks 6 | . . . 4 . 2 Record 1 | . . . . . 1 Robot Analysis 3 | . . . 3 . . Prototype ID Bank 1 | . . . 1 . . EX-Prototype ID Bank 1 | . . . . . 1 Fabricator Hacks . | . . . . . . Repair Station Hacks . | . . . . . . Recycling Unit Hacks . | . . . . . . Scanalyzer . | . . . . . . Garrison Access Hacks . | . . . . . . Unauthorized Hacks . | . . . . . . Terminals . | . . . . . . Fabricators . | . . . . . . Repair Stations . | . . . . . . Recycling Units . | . . . . . . Scanalyzers . | . . . . . . Garrison Access . | . . . . . . Data Cores Recovered . | . . . . . . Used . | . . . . . . Hacking Detections 2 | . . . 2 . . Full Trace Events . | . . . . . . Feedback Events . | . . . . . . Feedback Blocked . | . . . . . . Robot Schematics Acquired . | . . . . . . Robots Built . | . . . . . . Authchips . | . . . . . . Time . | . . . . . . Total Robot Build Rating . | . . . . . . Part Schematics Acquired . | . . . . . . Parts Built . | . . . . . . Authchips . | . . . . . . Time . | . . . . . . Total Part Build Rating . | . . . . . . Parts Repaired . | . . . . . . Time . | . . . . . . Parts Recycled . | . . . . . . Recycled Matter . | . . . . . . Retrieved Matter . | . . . . . . Retrieved Components . | . . . . . . Parts Scanalyzed . | . . . . . . Part Schematics Acquired . | . . . . . . Parts Damaged . | . . . . . . Bothacking | -11 -10 -10 -9 -9 -9 ------------ Run | Jun Mat Min Mat Min Exi Used RIF Installer . | . . . . . . Robots Hacked . | . . . . . . Non-combat . | . . . . . . Combat . | . . . . . . Robot Hacks Applied . | . . . . . . Relay Couplers Released . | . . . . . . Fabnet Peak Effective % . | . . . . . . Robots Rewired . | . . . . . . Allies Hacked . | . . . . . . Hacks Repelled . | . . . . . . Allies | -11 -10 -10 -9 -9 -9 -------- Run | Jun Mat Min Mat Min Exi Total Allies . | . . . . . . Largest Group . | . . . . . . Highest-Rated Group . | . . . . . . Highest-Rated Ally . | . . . . . . Total Orders . | . . . . . . Ally Attacks . | . . . . . . Total Damage . | . . . . . . Kills . | . . . . . . Allies Corrupted . | . . . . . . Allies Melted . | . . . . . . Intel | -11 -10 -10 -9 -9 -9 ------- Run | Jun Mat Min Mat Min Exi Robot Analysis Total 3 | . . . 3 . . Derelict Logs Recovered 4 | . . 2 . 2 . Drone Launches . | . . . . . . Drone Recoveries . | . . . . . . Exploration | -11 -10 -10 -9 -9 -9 ------------- Run | Jun Mat Min Mat Min Exi Turns Passed 3281 | 3 272 532 657 169 1648 Spaces Moved 1579 | 3 130 268 298 103 777 Core 2 | . 2 . . . . Treads 1256 | . 87 178 298 103 590 Legs 194 | 3 4 . . . 187 Wheels 127 | . 37 90 . . . Hover . | . . . . . . Flight . | . . . . . . Fastest Speed 90 | 120 90 90 160 160 120 Average Speed 150 | 120 140 138 160 160 150 Slowest Speed 250 | 120 250 160 160 160 240 Overloaded Moves . | . . . . . . Propulsion Burnouts . | . . . . . . Robots Hopped . | . . . . . . Cave-ins Triggered . | . . . . . . Exploration Rate (%) 40 | 2 30 70 31 33 76 Regions Visited 5 Branch Regions 3 Pre-discovered Areas 1 | . . . . . 1 Known Exits Taken . | . . . . . . Unknown Exits Taken 5 | 1 1 1 1 1 . Scrap Searched 2 | . . 1 . 1 . Spaces Dug 9 | . . . 9 . . Terrain Destroyed 28 | . . . 9 10 9 Melee . | . . . . . . Projectile . | . . . . . . AOE 28 | . . . 9 10 9 Terrain Rammed . | . . . . . . Walls Destroyed . | . . . . . . Machines Disabled . | . . . . . . Actions | -11 -10 -10 -9 -9 -9 --------- Run | Jun Mat Min Mat Min Exi Total 2075 | 2 177 352 400 105 1039 Wait 140 | . 6 21 26 . 87 Move 1574 | 2 129 267 297 102 777 Hop . | . . . . . . Pick Up 19 | . 7 2 4 . 6 Fast Attach 18 | . 2 4 3 . 9 Attach 17 | . 2 3 3 . 9 Detach 1 | . . . . . 1 Swap 17 | . 1 . 10 2 4 Drop 22 | . 6 1 5 . 10 Fire 263 | . 24 54 48 1 136 Melee . | . . . . . . Ram . | . . . . . . Kick . | . . . . . . Crush 4 | . . . 4 . . Escape Stasis . | . . . . . . Rewire . | . . . . . . Trap . | . . . . . . Miscellaneous . | . . . . . . Route ------- -11/Junkyard -10/Materials -10/Mines -9/Materials (discovered 2 exits: [*Mat] / [*Min]) -9/Mines -9/Exiles History --------- Turn | Location | Event 1 | -11/Junkyard | Discovered new exit (range 0) 4 | -11/Junkyard | Entered Materials 258 | -10/Materials | Discovered new exit (range 9) 276 | -10/Materials | Entered Mines 295 | -10/Mines | Found a hidden stash of uninstalled traps 307 | -10/Mines | Build established: Mutant 344 | -10/Mines | Core integrity fell below 50% 358 | -10/Mines | Lost 4 parts (1p1n2w) 406 | -10/Mines | Joined a pair of Derelicts in attacking an 0b10 outpost 494 | -10/Mines | Learned Materials emergency access door positions 649 | -10/Mines | Learned Materials stockpile data 782 | -10/Mines | Discovered new exit (range 8) 808 | -10/Mines | Entered Materials 808 | -9/Materials | Evolved 2 slots: Propulsion x1, Utility x1 966 | -9/Materials | Discovered new exit (range 16) 1250 | -9/Materials | Central database locked down 1451 | -9/Materials | Discovered new exit (range 10) 1465 | -9/Materials | Entered Mines 1574 | -9/Mines | Learned 4 Materials zone layouts 1627 | -9/Mines | Deemed a non-threat by the Exiles lab entrance 1627 | -9/Mines | Discovered new exit (range 5) 1634 | -9/Mines | Entered Exiles 1661 | -9/Exiles | Build established: Scavenger-Mutant 1674 | -9/Exiles | Met 8R-AWN 1702 | -9/Exiles | Met EX-HEX 1765 | -9/Exiles | Met EX-DEC 1771 | -9/Exiles | Learned location of Zion (-7) 1997 | -9/Exiles | Met EX-BIN 2014 | -9/Exiles | Aligned with FarCom system 2016 | -9/Exiles | Given EX-Vault access code 2051 | -9/Exiles | Build established: Mutant 2053 | -9/Exiles | Opened EX-Vault 2064 | -9/Exiles | Found Field Lobotomy Kit 2097 | -9/Exiles | Warned to stay clear of 0b10 Research branches 2511 | -9/Exiles | Attacked by the Exiles 2589 | -9/Exiles | Build established: Scavenger-Mutant 2692 | -9/Exiles | Core integrity fell below 50% 2713 | -9/Exiles | Lost 7 parts (3n4w) 2767 | -9/Exiles | Destroyed 8R-AWN 2777 | -9/Exiles | Lost 4 parts (1p1n1u1w) 2821 | -9/Exiles | Core integrity fell below 20% 3282 | -9/Exiles | Destroyed by EX-DEC with AWS/EX-DEC Last Messages --------------- 03082_ Dropped Hcp. Matter Pod. 03083_ Extracted 104 matter. 03109_ ZX-C33 destroyed. 03127_ DK-RAY destroyed. 03132_ Acquired Mak. Leg. 03140_ W1-DM0 destroyed. 03143_ 5L-KAT destroyed. 03168_ J5-HVA destroyed. 03172_ Acquired 19 matter. 03174_ Acquired Mak. Power Source. 03186_ Acquired Mak. Leg. 03188_ Acquired 10 matter. 03214_ Machine disabled. 03215_ Lgt. Assault Rifle destroyed. 03219_ Acquired 28 matter. 03267_ System corrupted: FCS attempts to trigger Lgt. Assault Rifle. 03267_ System corrupted: Lgt. Assault Rifle misfires. 03276_ Exp. Heat Sink destroyed. 03280_ Heat Sink destroyed. 03280_ Machine disabled. Map ----- +----------------------------------------------------+ | ?# # % " " " " | | ?#####"# " | | ?????# ### | | ?????# #?## | | ?????# #??## | | ?????# #???# | | ?????# #???## """""" | | ?????# #???## ######""" | | ?????# #???#"" ""##????#####""" | | ?????##???##""" ""##?????????##""" | | ??????????#""" """##???????????#"""" | | ??????????#""" ""#????????????#"" | | ??????????#"" ########???###"""" | | ??????????#""" ## ####""" | | ??????????#"" """" | | ??????????##"" ! | | ???????????#""" z | | ???????????## | | ????????????#" " "" | | ????????????#"""" ""## ##""" " " " | | ????????????#"" ""#### #?####""" "" | | ????????????#" """"##??# #????###"""" | | ????????????#""" """#??## ####???####? | | ????????????## ""##??#! " #???????? | | ?????????????#"" % ""##???#" #???????? | | ?????????????##""" @ ##????#" "#???????? | | ??????????????##"""" ##?????#!!""!"#???????? | | ???????????????### #??????########???????? | | ?????????????????##### c##?????????????????????? | | ?????????????????????## #??????????????????????? | | ??????????????????????# #??????????????????????? | | ??????????????????????# #??????????????????????? | | ??????????????????????#=% #??????????????????????? | | ??????????????????????# #??????????????????????? | | ??????????????????????# #??????????????????????? | | ??????????????????????# #??????????????????????? | | ??????????????????????# #??????????????????????? | | ??????????????????????# #??????????????????????? | | ??????????????????????#*= #??????????????????????? | | ?????????????#"""###### ########???????????????? | | ???????????""" "" """c """"""#???????????????? | | ???????????"" =%* "#???????????????? | | ????????? !! " "???????????? | | ????????? " " "??????????? | | ????????? " "????????????? | | ?????????? "" #"" ????????????? | | ??????????""" " """" """""#???????????????? | | ????????????##"""########"""######???????????????? | | ?????????????" ?????????" "????????????????????? | | ????????????????????????" """???????????????????? | +----------------------------------------------------+ Best States ------------- Heat Dissipation 64 Energy Generation 15 Energy Capacity 265 Matter Stores 300 Matter Capacity 300 Sight Range 16 Terrain Scan Density 10 Evasion (%) 55 Targeting Accuracy 5 Recoil Reduction 3 Item Schematics ----------------- None Robot Schematics ------------------ None Fabricated ------------ Nothing Alien Tech Used ----------------- None Achievements -------------- None Challenges ------------ None Game ------ Seed IntegrityMicrowarpCharge Manual? 0 Play Time 00:23:10 Cumulative 439.6 hours Start 2023.05.03 @ 19:32:52 End 2023.05.03 @ 20:35:29 Sessions 1 Manual Loads 0 Difficulty Rogue Special Mode None Game No. 483 Rogue 483 Adventurer 0 Explorer 0 Win Type - Total 12 Types 8/0/3/1/0/0/0/0/0 Lore% 82 Gallery% 90 Achievement% 80 Wizard Run 0 Options --------- ASCII 0 Keyboard 0 Movement Numpad Keybinds 0 Fullscreen 1 Font 18/Terminus Map View 76x50 Tactical HUD 1 Map Filters NONE Filters NONE Steam 1 RUN: 980e0546-5fdb-4f7b-8281-7a4306b7cfe8